Cogmind - Beta 13 @@@ ROGUE MODE // 2024.04.15 @ 16:09:11 Player: sordeles Result: Destroyed by D-53 Grenadier with Mini Grenade Launcher Performance ------------- Evolutions (0) 0 Regions Visited (2) 400 Robots Destroyed (16) 80 Value Destroyed (369) 369 Prototype IDs (4) 80 Alien Tech Used (0) 0 Bonus (0) 0 TOTAL SCORE: 929 Bonus ------- None Cogmind --------- Core Integrity 0/250 Matter 276/300 Energy 250/250 System Corruption 0% Temperature Cool (0) Movement Rolling (105) Ox1 Location -10/Mines Parts ------- > --- POWER (1) -------- Ion Engine > --- PROPULSION (2) --- Armored Wheel Armored Wheel > --- UTILITY (2) ------ Large Storage Unit Core Shielding > --- WEAPON (2) ------- Heavy Hammer > --- INVENTORY (15) --- Armored Wheel Armored Wheel Armored Wheel Armored Wheel Improved Flight Unit Improved Flight Unit Improved Flight Unit Improved Flight Unit Large Storage Unit Large Battery (200) Particle Cannon Heavy Hammer Peak State ------------ > --- POWER ------------ Ion Engine > --- PROPULSION ------- Improved Flight Unit Improved Flight Unit > --- UTILITY ---------- Small Storage Unit Core Shielding > --- WEAPON ----------- Particle Cannon Assault Rifle > --- INVENTORY -------- Ion Engine Light Treads Light Treads Aluminum Leg Aluminum Leg Large Battery Particle Cannon Heavy Hammer [Rating: 13] Favorites ----------- Power Ion Engine Engine Ion Engine Propulsion Light Treads Treads Light Treads Wheel Armored Wheel Flight Unit Improved Flight Unit Utility Small Storage Unit Device Terrain Scanner Storage Small Storage Unit Protection Core Shielding Weapon Particle Cannon Energy Cannon Particle Cannon Ballistic Gun Assault Rifle Impact Weapon Heavy Hammer Build | -11 -10 -10 ------- Run | Yrd Mat Min Slots Evolved . | . . . Power . | . . . Propulsion . | . . . Utility . | . . . Weapon . | . . . Parts Attached 31 | 6 23 2 Power 2 | 1 . 1 Engine 2 | 1 . 1 Core . | . . . Reactor . | . . . Propulsion 10 | 2 8 . Treads 4 | 2 2 . Leg . | . . . Wheel 3 | . 3 . Hover . | . . . Flight 3 | . 3 . Utility 6 | 1 5 . Device 1 | . 1 . Storage 2 | 1 1 . Processor . | . . . Hackware . | . . . Protection 3 | . 3 . Artifact . | . . . Weapon 13 | 2 10 1 Energy Gun . | . . . Energy Cannon 5 | . 5 . Ballistic Gun 4 | 2 2 . Ballistic Cannon . | . . . Launcher . | . . . Special Weapon . | . . . Impact Weapon 4 | . 3 1 Slashing Weapon . | . . . Piercing Weapon . | . . . Special Melee Weapon . | . . . Unidentified Prototypes . | . . . Parts Lost 3 | . 1 2 Power 1 | . . 1 Propulsion . | . . . Utility . | . . . Weapon 2 | . 1 1 Highest Loss Streak 1 | . 1 1 To Critical Strikes . | . . . Average Slot Usage (%) 98 | . 98 98 Engine 13 | . 14 13 Treads 16 | . 17 . Wheel 11 | . 9 28 Device 2 | . 2 . Storage 14 | . 14 14 Protection 11 | . 10 14 Energy Cannon 15 | . 14 22 Ballistic Gun 7 | . 8 . Impact Weapon 5 | . 5 6 Naked Turns . | . . . Heaviest Build 34 | 14 34 34 Greatest Support 40 | 40 40 24 Greatest Overweight (x) 5 | . 5 1 Average Overweight (x) . | . . 1 Largest Inventory Capacity 15 | 8 15 15 Average Capacity 9 | 6 8 15 Most Carried 14 | 4 14 14 Average Carried 8 | 2 8 12 Final Capacity 15 | 8 15 15 Final Carried 13 | 4 13 12 Class Distribution -------------------- 100% | Mutant Dominant Class ---------------- Mutant | -10/Materials Mutant | -10/Mines Resources | -11 -10 -10 ----------- Run | Yrd Mat Min Matter Collected 546 | 219 327 . Remotely . | . . . Salvage Created 524 | . 431 93 Parts 20 | . 20 . Haulers Intercepted . | . . . Recyclers Shooed . | . . . Parts Field Recycled . | . . . Retrieved Matter . | . . . Parts Self-Destructed . | . . . Prevented . | . . . Kills | -11 -10 -10 ------- Run | Yrd Mat Min Combat Hostiles Destroyed 20 | . 13 7 Melee 4 | . 1 3 Guns 3 | . 3 . Cannons 9 | . 6 3 Classes Destroyed 4 | . 3 1 Watcher 3 | . 3 . Swarmer 6 | . 6 . Grunt 7 | . 7 . Assembled 7 | . . 7 Best Kill Streak 4 | . 3 4 Combat Bots Only 4 | . 3 4 Max Kills in Single Turn 2 | . 1 2 Gunslinging . | . . . Exploded . | . . . Melee 1 | . 1 1 Uniques/NPCs Destroyed . | . . . Combat | -11 -10 -10 -------- Run | Yrd Mat Min Hostile Shots Fired 100 | . 64 36 Missed 27 | . 18 9 Damage Taken 1156 | . 514 642 Core 254 | . 96 158 Absorbed by Shields . | . . . Redirected to Shielding 69 | . 37 32 Core Remaining (%) 100 | 100 . . Volleys Fired 40 | . 36 4 Largest 2 | . 2 2 Hottest 136 | . 136 136 Shots Fired 75 | . 67 8 Gun 25 | . 25 . Cannon 50 | . 42 8 Launcher . | . . . Special . | . . . Kinetic 25 | . 25 . Thermal 50 | . 42 8 Explosive . | . . . Electromagnetic . | . . . Robot Hit Streak 12 | . 12 8 Robot Miss Streak 4 | . 4 3 Penetration Max . | . . . Secondary Targets . | . . . Shots Hit Robots 69 | . 57 12 Core Hits 21 | . 16 5 Critical Kills 1 | . . 1 Critical Parts Destroyed 3 | . 3 . Critical Strikes 4 | . 3 1 Smash 4 | . 3 1 Melee Attacks 29 | . 9 20 Impact 29 | . 9 20 Slashing . | . . . Piercing . | . . . Sneak Attacks . | . . . Combat Hostiles . | . . . Follow-up Attacks . | . . . Damage Inflicted 1617 | . 1141 476 Guns 279 | . 279 . Cannons 715 | . 632 83 Explosions . | . . . Melee 623 | . 230 393 Ramming . | . . . Kinetic 279 | . 279 . Thermal 715 | . 632 83 Explosive . | . . . Electromagnetic . | . . . Impact 623 | . 230 393 Slashing . | . . . Piercing . | . . . Highest Corruption . | . . . Average Corruption . | . . . Corruption Purged . | . . . Corruption Blocked . | . . . Overload Shots . | . . . Overflow Damage 193 | . 129 64 Projectiles . | . . . Explosions . | . . . Melee 193 | . 129 64 Knockbacks . | . . . Impact . | . . . Kinetic . | . . . Secondary . | . . . Self-Inflicted Damage . | . . . Shots . | . . . Rammed . | . . . Targets Rammed . | . . . Kicked . | . . . Crushed . | . . . Highest Temperature 290 | . 286 290 Average Temperature 112 | . 108 145 Received Heat Transfer 135 | . 126 9 Effects 5 | . 5 . Interference 5 | . 5 . Siege Activations . | . . . Robots Corrupted . | . . . Combat Hostiles . | . . . Parts Fried 2 | . 2 . Impact Corruptions 9 | . 5 4 Robots Melted . | . . . Combat Hostiles . | . . . Parts Melted 1 | . 1 . Heat Transferred 1295 | . 1147 148 Parts Sabotaged . | . . . Parts Stolen . | . . . Parts Stripped . | . . . Power Chain Reactions . | . . . Alert | -11 -10 -10 ------- Run | Yrd Mat Min Peak Influence 197 | . 197 25 Initial 25 | . . 25 Average 62 | . 70 20 Maximum Alert Level . | . . . Low Security (%) 100 | 100 100 100 Level 1 . | . . . Level 2 . | . . . Level 3 . | . . . Level 4 . | . . . Level 5 . | . . . High Security . | . . . Max Security . | . . . Squads Dispatched 3 | . 3 . Investigation 1 | . 1 . Extermination . | . . . Reinforcement 2 | . 2 . Assault . | . . . Garrison . | . . . Intercept . | . . . Searches Triggered . | . . . Construction Impeded . | . . . Haulers Reinforced . | . . . Active Scanning Responses . | . . . Cargo Convoy Interrupts . | . . . Stealth | -11 -10 -10 --------- Run | Yrd Mat Min Distress Signals . | . . . Communications Jammed . | . . . Distress Signals . | . . . Times Spotted 44 | . 19 25 Peak Tracking Total 17 | . 3 17 Tactical Retreats 4 | . 2 2 Traps | -11 -10 -10 ------- Run | Yrd Mat Min Traps Triggered 3 | . 3 . Indirectly . | . . . Trap Hack Attempts . | . . . Triggered . | . . . Disarmed . | . . . Reprogrammed . | . . . Reused . | . . . Traps Extracted . | . . . Installed . | . . . Triggered . | . . . Machines | -11 -10 -10 ---------- Run | Yrd Mat Min Machines Disabled 1 | . 1 . Max in Single Turn 1 | . 1 . Machines Repaired . | . . . Machines Dismantled . | . . . Machines Sabotaged . | . . . Overloaded Fab Kills . | . . . Hacking | -11 -10 -10 --------- Run | Yrd Mat Min Machines Accessed 4 | . 4 . Terminals 4 | . 4 . Fabricators . | . . . Repair Stations . | . . . Recycling Units . | . . . Scanalyzers . | . . . Garrison Access . | . . . Total Hacks 6 | . 6 . Successful 6 | . 6 . Failed . | . . . Catastrophic . | . . . Database Lockouts . | . . . Manual . | . . . Terminals 6 | . 6 . Fabricators . | . . . Repair Stations . | . . . Recycling Units . | . . . Scanalyzers . | . . . Garrison Access . | . . . Terminal Hacks 6 | . 6 . Prototype ID Bank 2 | . 2 . Emergency Access Points 1 | . 1 . Alert Level 1 | . 1 . Locate Traps 1 | . 1 . Reinforcement Status 1 | . 1 . Fabricator Hacks . | . . . Repair Station Hacks . | . . . Recycling Unit Hacks . | . . . Scanalyzer . | . . . Garrison Access Hacks . | . . . Unauthorized Hacks . | . . . Terminals . | . . . Fabricators . | . . . Repair Stations . | . . . Recycling Units . | . . . Scanalyzers . | . . . Garrison Access . | . . . Data Cores Recovered . | . . . Used . | . . . Hacking Detections 1 | . 1 . Full Trace Events . | . . . Feedback Events . | . . . Feedback Blocked . | . . . Robot Schematics Acquired . | . . . Robots Built . | . . . Authchips . | . . . Time . | . . . Total Robot Build Rating . | . . . Part Schematics Acquired . | . . . Parts Built . | . . . Authchips . | . . . Time . | . . . Total Part Build Rating . | . . . Parts Repaired . | . . . Time . | . . . Parts Recycled . | . . . Recycled Matter . | . . . Retrieved Matter . | . . . Retrieved Components . | . . . Parts Scanalyzed . | . . . Part Schematics Acquired . | . . . Parts Damaged . | . . . Bothacking | -11 -10 -10 ------------ Run | Yrd Mat Min Used RIF Installer . | . . . Robots Hacked . | . . . Non-combat . | . . . Combat . | . . . Robot Hacks Applied . | . . . Relay Couplers Released . | . . . Fabnet Peak Effective % . | . . . Robots Rewired . | . . . Allies Hacked . | . . . Hacks Repelled . | . . . Allies | -11 -10 -10 -------- Run | Yrd Mat Min Total Allies . | . . . Largest Group . | . . . Highest-Rated Group . | . . . Highest-Rated Ally . | . . . Total Orders . | . . . Ally Attacks . | . . . Total Damage . | . . . Kills . | . . . Allies Corrupted . | . . . Allies Melted . | . . . Intel | -11 -10 -10 ------- Run | Yrd Mat Min Robot Analysis Total . | . . . Derelict Logs Recovered . | . . . Drone Launches . | . . . Drone Recoveries . | . . . Exploration | -11 -10 -10 ------------- Run | Yrd Mat Min Turns Passed 1682 | 88 1451 143 Spaces Moved 1063 | 51 942 70 Core 6 | 5 1 . Treads 512 | 46 466 . Legs . | . . . Wheels 533 | . 463 70 Hover . | . . . Flight 12 | . 12 . Fastest Speed 50 | 50 90 105 Average Speed 127 | 149 127 105 Slowest Speed 300 | 160 300 105 Overloaded Moves . | . . . Propulsion Burnouts . | . . . Robots Hopped . | . . . Cave-ins Triggered . | . . . Exploration Rate (%) 39 | 4 97 17 Regions Visited 2 Branch Regions 1 Pre-discovered Areas . | . . . Known Exits Taken . | . . . Unknown Exits Taken 2 | 1 1 . Scrap Searched . | . . . Spaces Dug . | . . . Terrain Destroyed . | . . . Melee . | . . . Projectile . | . . . AOE . | . . . Terrain Rammed . | . . . Walls Destroyed . | . . . Machines Disabled . | . . . Actions | -11 -10 -10 --------- Run | Yrd Mat Min Total 1270 | 60 1113 97 Wait 56 | . 56 . Move 1061 | 50 941 70 Hop . | . . . Pick Up 22 | 4 18 . Fast Attach 18 | 6 12 . Attach 13 | . 11 2 Detach 12 | . 11 1 Swap . | . . . Drop 19 | . 19 . Fire 40 | . 36 4 Melee 29 | . 9 20 Ram . | . . . Kick . | . . . Crush . | . . . Escape Stasis . | . . . Rewire . | . . . Trap . | . . . Miscellaneous . | . . . Route ------- -11/Scrapyard -10/Materials (discovered 4 exits: [*Mat x3] / [*Min]) -10/Mines History --------- Turn | Location | Event 7 | -11/Scrapyard | Discovered new exit (range 13) 89 | -11/Scrapyard | Entered Materials 313 | -10/Materials | Build established: Mutant 651 | -10/Materials | Discovered new exit (range 11) 874 | -10/Materials | Discovered new exit (range 14) 1085 | -10/Materials | Discovered new exit (range 9) 1189 | -10/Materials | Discovered new exit (range 8) 1540 | -10/Materials | Entered Mines 1582 | -10/Mines | Assembled infested the area 1643 | -10/Mines | Core integrity fell below 50% 1664 | -10/Mines | Core integrity fell below 20% 1683 | -10/Mines | Destroyed by D-53 Grenadier with Mini Grenade Launcher Last Messages --------------- as-29342 system corrupted by crushing effect. as-29342 destroyed. as-04246 destroyed. Destroyed Asb. Hover Unit. as-12526 system corrupted by crushing effect. as-12526 system terminally corrupted. Destroyed Asb. Blade. as-68610 system corrupted by crushing effect. as-81152 suffers critical hit (Smash). as-81152 destroyed. Knocked back. as-68610 destroyed. as-82191 destroyed. as-42257 destroyed. as-82390 destroyed. as-89926 destroyed. as-06843 destroyed. as-81301 destroyed. as-16675 destroyed. Particle Cannon destroyed. Map ----- +----------------------------------------------------+ | ???????????###### ##? #???#????? | | ??????????## ## ### #????? | | ???????#### #????? | | ???? = #????? | | ???? ##! ###??????? | | ???????????????## ##????????? | | ????????????????# ! ##?????????? | | ????????????????# %##??????????? | | ???????????????## ##???????????? | | ??????????????## #????????????? | | ?????????????## #????????????? | | ?????????????# ##???????????? | | ????????????## #???????????? | | ???????????## #???????????? | | ??????????## #???????????? | | ??????????# #???????????? | | ??????????# ## ##???????????? | | ??????????# #####????????????? | | ??????????# ##????####???????? | | ??????????# ##??## #####???? | | ??????????# #??# ##??? | | ??????????# #??# #??? | | ??????????## ??## #??? | | ???????????## # ### ##??? | | ???????????# a # % ##???? | | ???????????# *% % d%% @ ##????? | | ????????????# % d ##?????? | | ????????????# # # ###??????? | | ???????????# =#?????##?????????? | | ??????????? ????????????????? | | ??????????# ????????????????? | | ?????????# ????????????????? | | ?????????# ????????????????? | | ?????????## ???????????????? | | ??????????## ???????????????? | | ???????????## ???????????????? | | ????????????# ???????????????? | | ???????????? ???????????????? | | ???????????? ???????????????? | | ???????????? ???????????????? | | ????????????? ???????????????? | | ?????????????????????????????????? | | ?????????????????????????????????? | | ?????????????????????????????????? | | ?????????????????????????????????? | | ?????????????????????????????????? | | ?????????????????????????????????? | | ?????????????????????????????????? | | ?????????????????????????????????? | | ?????????????????????????????????? | +----------------------------------------------------+ Best States ------------- Heat Dissipation 25 Energy Generation 10 Energy Capacity 250 Matter Stores 300 Matter Capacity 300 Sight Range 16 Terrain Scan Range 14 Terrain Scan Density 10 Core Shielding 20 Propulsion Shielding 33 Evasion (%) 42 Recoil Reduction 2 Item Schematics ----------------- None Robot Schematics ------------------ None Fabricated ------------ Nothing Alien Tech Used ----------------- None Achievements -------------- None Challenges ------------ None Game ------ Seed BiometalLaserExtractor Manual? 0 Play Time 00:23:38 Cumulative 3.3 hours Start 2024.04.15 @ 15:46:40 End 2024.04.15 @ 16:09:11 Sessions 1 Manual Loads 0 Difficulty Rogue Special Mode None Game No. 8 Rogue 8 Adventurer 0 Explorer 0 Win Type - Total 0 Types 0/0/0/0/0/0/0/0/0 Lore% 0 Gallery% 7 Achievement% 4 Wizard Run 0 Options --------- Layout 1 ASCII 0 Keyboard 1 Movement Numpad Keybinds 0 Fullscreen 1 Font 32/Terminus Map View 50x35 Zoom Use 0% Tactical HUD 0 Map Filters NONE Filters NONE Steam 1 RUN: 5b259896-7582-4f63-ac1d-bc36eba0456c